bitfinex/quotes_BTCUSD_20241216
["timestamp","ask_amount","ask_price","bid_price","bid_amount"]
[1734373642155,0.09465384,107480.0,107430.0,0.1734412]
[1734373642376,0.09465384,107480.0,107440.0,0.23260478]
[1734373642598,0.0464,107470.0,107430.0,0.0029505]
[1734373642804,0.0464,107470.0,107430.0,0.00016924]
[1734373642805,0.17405384,107460.0,107430.0,0.00016924]
[1734373643007,0.25735318,107460.0,107430.0,0.00016924]
[1734373643217,0.00116341,107450.0,107430.0,0.00016924]
[1734373643444,0.09545411,107450.0,107430.0,0.00016924]
[1734373644104,0.16189934,107460.0,107430.0,0.00016924]
[1734373644325,0.02929069,107450.0,107430.0,0.00016924]
[1734373644548,0.0478,107440.0,107430.0,0.00016924]
[1734373644752,0.0489635,107440.0,107430.0,0.00016924]
[1734373646468,0.1432542,107440.0,107430.0,0.00016924]
[1734373646629,0.04896365,107440.0,107430.0,0.00016924]
[1734373646833,0.0478,107440.0,107430.0,0.00016924]
[1734373647034,0.0478,107440.0,107430.0,0.0370164]
[1734373647236,0.0479728,107440.0,107390.0,0.1832644]
[1734373647491,0.08310022,107470.0,107400.0,3.6603757]
[1734373647688,0.09545395,107470.0,107410.0,3.105703]
[1734373647889,0.09545395,107470.0,107420.0,0.09498872]
[1734373648099,0.00116322,107470.0,107420.0,1.94506572]
[1734373648314,0.00116322,107470.0,107430.0,0.95800785]
[1734373648524,0.00116322,107470.0,107440.0,0.19524585]
[1734373648725,0.00116322,107470.0,107440.0,0.00069785]
[1734373649135,0.00116322,107470.0,107430.0,0.0942907]
[1734373649334,0.0942907,107470.0,107430.0,0.0481014]
[1734373649539,0.05,107450.0,107400.0,0.02296]
[1734373649927,0.49086055,107420.0,107410.0,0.30550865]
[1734373650130,0.05,107440.0,107390.0,2.422964]
[1734373650445,4.30688004,107430.0,107400.0,1.575094]
[1734373650606,3.00713955,107420.0,107410.0,0.453976]
[1734373650810,3.00713955,107420.0,107410.0,0.6461267]
[1734373650811,0.24939294,107420.0,107410.0,0.6461267]
[1734373651021,0.11006482,107430.0,107410.0,0.5510109]
[1734373651179,0.3550737,107440.0,107420.0,0.213417]
[1734373651384,0.35082633,107440.0,107370.0,0.05891947]
[1734373651583,0.08313642,107390.0,107380.0,2.74399042]
[1734373651793,0.1010978,107420.0,107390.0,0.023]
[1734373651989,0.1010978,107420.0,107400.0,0.528952]
[1734373651990,0.36859284,107420.0,107400.0,0.528952]
[1734373652438,0.16075178,107420.0,107400.0,0.528952]
[1734373652687,0.23532159,107430.0,107400.0,0.52951659]
[1734373652916,0.23532159,107430.0,107400.0,0.00056459]
[1734373653467,0.23532159,107430.0,107410.0,0.03]
[1734373653638,0.20784106,107430.0,107410.0,0.34987211]
[1734373653843,0.19856673,107430.0,107420.0,0.882271]
[1734373654046,0.02418792,107440.0,107420.0,0.9765617]
[1734373654270,0.33951868,107460.0,107420.0,0.0942907]
[1734373654520,0.43380938,107460.0,107420.0,0.0942907]
[1734373654725,0.15307861,107460.0,107420.0,0.0942907]
[1734373654893,0.15424187,107460.0,107420.0,0.0942907]
[1734373655905,0.0942907,107450.0,107410.0,0.023]
[1734373656099,0.0942907,107450.0,107410.0,0.7742077]
[1734373656312,0.09168595,107450.0,107420.0,0.47689883]
[1734373656546,0.09168595,107450.0,107400.0,0.02356459]
[1734373656749,0.09168595,107450.0,107410.0,0.547081]
[1734373656955,0.09168595,107450.0,107410.0,0.441056]
[1734373657155,0.09168595,107450.0,107400.0,0.11785529]
[1734373657156,0.0942907,107450.0,107420.0,0.00093071]
[1734373657355,0.0942907,107450.0,107410.0,0.00093071]
[1734373657568,0.0942907,107450.0,107410.0,0.91391571]
[1734373657775,0.0942907,107450.0,107420.0,0.1167777]
[1734373657989,0.0942907,107450.0,107420.0,0.0009307]
[1734373658200,0.0942907,107450.0,107410.0,0.0009307]
[1734373658452,0.0942907,107450.0,107410.0,0.5312597]
[1734373658657,0.0942907,107450.0,107400.0,0.11785529]
[1734373658860,0.0942907,107450.0,107410.0,0.6255504]
[1734373659066,0.0942907,107450.0,107400.0,0.02356459]
[1734373659265,0.02929069,107450.0,107410.0,0.9401784]
[1734373659464,0.02929069,107450.0,107410.0,0.0942907]
[1734373659671,0.02929069,107450.0,107410.0,0.0952214]
[1734373660047,0.19590155,107450.0,107410.0,0.04836029]
[1734373660287,0.24090155,107450.0,107410.0,0.04836029]
[1734373661078,0.36585783,107450.0,107410.0,0.04836029]
[1734373661275,0.36585534,107450.0,107410.0,0.04836029]
[1734373661753,0.19924697,107450.0,107410.0,0.04836029]
[1734373661984,0.08330096,107440.0,107400.0,0.00149529]
[1734373662209,0.28254793,107450.0,107410.0,0.5392907]
[1734373662463,0.28254793,107450.0,107420.0,0.33790271]
[1734373662708,0.28254793,107450.0,107410.0,0.0942907]
[1734373663140,0.27697882,107450.0,107410.0,0.0942907]
[1734373663365,0.27697882,107450.0,107420.0,0.169194]
[1734373663614,0.27697882,107450.0,107410.0,0.0942907]
[1734373663901,0.27697882,107450.0,107420.0,0.169194]
[1734373664263,0.30626951,107450.0,107420.0,0.169194]
[1734373664734,0.30626951,107450.0,107420.0,0.154604]
[1734373664944,0.30618951,107450.0,107420.0,0.17095671]
[1734373665169,0.30618951,107450.0,107420.0,0.00093071]
[1734373666052,0.30618951,107450.0,107400.0,0.00056459]
[1734373666278,0.08330096,107440.0,107410.0,0.481025]
[1734373666488,0.08330096,107440.0,107400.0,0.11785529]
[1734373666676,0.47279788,107450.0,107410.0,0.1863875]
[1734373666922,0.30618951,107450.0,107410.0,0.0004655]
[1734373667145,0.08330096,107440.0,107410.0,0.0004655]
[1734373667370,0.08330096,107440.0,107420.0,0.265257]
[1734373667835,0.30618951,107450.0,107410.0,0.923855]
[1734373668076,0.30618951,107450.0,107420.0,0.00046547]
[1734373668523,0.18123323,107450.0,107410.0,0.00046547]
[1734373668750,0.18239662,107450.0,107410.0,1.57223347]
[1734373668936,0.18243662,107450.0,107420.0,0.802967]
[1734373669226,0.18243662,107450.0,107410.0,1.559919]
[1734373669498,0.11743661,107450.0,107420.0,0.00046547]
[1734373670614,0.11209418,107450.0,107420.0,0.00046547]
[1734373670835,0.23705046,107450.0,107420.0,0.00046547]
[1734373671060,0.23588707,107450.0,107430.0,0.03]
[1734373671284,0.08330096,107440.0,107410.0,0.07869856]
[1734373671506,0.01978019,107410.0,107400.0,0.12151099]
[1734373671731,0.01978019,107410.0,107400.0,0.21580169]
[1734373672417,0.01978019,107410.0,107400.0,3.50978869]
[1734373672643,0.01978019,107410.0,107400.0,2.67809869]
[1734373672872,0.01978019,107410.0,107400.0,2.58023869]
[1734373673122,0.01257602,107410.0,107400.0,2.08218069]
[1734373673337,0.03394157,107410.0,107400.0,2.03534067]
[1734373674449,0.05224713,107440.0,107400.0,2.03534067]
[1734373674753,0.0942907,107440.0,107410.0,1.595839]
[1734373674956,0.0942907,107440.0,107420.0,0.255615]
[1734373675095,0.0942907,107440.0,107410.0,1.315201]
[1734373675503,0.0942907,107440.0,107410.0,1.301001]
[1734373676310,0.0942907,107440.0,107410.0,1.25481821]
[1734373676510,0.0910862,107440.0,107410.0,1.284632]
[1734373676711,0.340769,107450.0,107410.0,0.5253567]
[1734373676935,0.1435035,107450.0,107420.0,2.332344]
[1734373677173,0.1435035,107450.0,107430.0,0.858325]
[1734373677372,4e-05,107440.0,107430.0,0.858325]
[1734373677582,0.1383853,107450.0,107430.0,0.858325]
[1734373677771,0.13557581,107450.0,107430.0,0.858325]
[1734373677947,0.0942907,107450.0,107430.0,0.858325]
[1734373679080,0.291729,107470.0,107430.0,0.858325]
[1734373679279,0.02929069,107460.0,107430.0,0.858325]
[1734373682971,0.02929069,107460.0,107420.0,0.0811]
[1734373683106,0.02929069,107460.0,107430.0,0.759037]
[1734373683306,0.02946349,107460.0,107430.0,0.759037]
[1734373683526,0.02950349,107460.0,107430.0,0.759037]
[1734373684156,0.0002128,107460.0,107440.0,0.418071]
[1734373684389,0.08329222,107460.0,107420.0,0.1753907]
[1734373684632,0.14478406,107470.0,107430.0,1.46786956]
[1734373684795,0.17545364,107470.0,107440.0,1.808151]
[1734373684970,0.15703446,107470.0,107440.0,1.808151]
[1734373685173,0.06158057,107470.0,107450.0,0.00093054]
[1734373685376,0.00056459,107470.0,107460.0,0.124033]
[1734373687212,0.00056459,107470.0,107460.0,0.13173282]
[1734373687413,0.63256703,107500.0,107470.0,0.00769982]
[1734373687659,0.72702707,107500.0,107470.0,0.00863011]
[1734373687863,0.72702707,107500.0,107470.0,0.00769982]
[1734373689694,0.63273637,107500.0,107470.0,0.00769982]
[1734373689921,0.56773636,107500.0,107480.0,0.267251]
[1734373690120,0.56773636,107500.0,107460.0,2.223507]
[1734373690319,0.56773636,107500.0,107470.0,1.013247]
[1734373691060,0.66206706,107500.0,107470.0,0.96126]
[1734373691200,0.66206706,107500.0,107470.0,0.930178]
[1734373691610,0.65742628,107500.0,107470.0,0.930178]
[1734373693276,0.50703558,107500.0,107470.0,0.930178]
[1734373693473,0.50703558,107500.0,107460.0,0.1438907]
[1734373693675,0.50703558,107500.0,107470.0,2.340293]
[1734373693850,0.50703558,107500.0,107470.0,2.013183]
[1734373694046,0.50703558,107500.0,107480.0,0.854306]
[1734373694253,0.44203557,107500.0,107470.0,1.912709]
[1734373694627,0.44203557,107500.0,107460.0,0.1438907]
[1734373694845,0.44203557,107500.0,107470.0,1.738279]
[1734373695053,0.48836078,107500.0,107480.0,0.481061]
[1734373695255,0.43739583,107500.0,107470.0,1.410972]
[1734373695459,0.43739583,107500.0,107480.0,0.654471]
[1734373695665,0.43739583,107500.0,107470.0,1.55098]
[1734373695870,0.0040894,107490.0,107470.0,1.55098]
[1734373696090,0.0040894,107490.0,107480.0,0.68004]
[1734373696288,0.43739583,107500.0,107480.0,0.472361]
[1734373696289,0.43728334,107500.0,107480.0,0.472361]
[1734373696503,0.43728334,107500.0,107470.0,1.579443]
[1734373696792,0.43728334,107500.0,107470.0,0.883922]
[1734373697008,0.43728334,107500.0,107470.0,1.461691]
[1734373697420,0.53157404,107500.0,107470.0,1.065113]
[1734373697621,0.53157404,107500.0,107470.0,1.39563]
[1734373697826,0.53157404,107500.0,107470.0,0.729676]
[1734373698028,0.53157404,107500.0,107470.0,1.075523]
[1734373698849,0.53157404,107500.0,107480.0,0.278256]
[1734373699056,0.53157404,107500.0,107470.0,0.559687]
[1734373699284,0.46657403,107500.0,107470.0,0.559687]
[1734373699490,0.46102813,107500.0,107470.0,0.559687]
[1734373699697,0.4574757,107500.0,107470.0,0.559687]
[1734373701158,0.44533562,107500.0,107470.0,0.559687]
[1734373701978,0.44533562,107500.0,107480.0,0.419596]
[1734373702160,0.44533562,107500.0,107460.0,0.0942907]
[1734373702373,0.44533562,107500.0,107470.0,0.834936]
[1734373702554,0.00460749,107490.0,107470.0,0.768968]
[1734373702937,0.44050324,107500.0,107470.0,0.715863]
[1734373703128,0.43305063,107500.0,107480.0,0.187189]
[1734373703346,0.43305063,107500.0,107470.0,0.782942]
[1734373703799,0.43305063,107500.0,107480.0,0.372865]
[1734373704048,0.43305063,107500.0,107460.0,0.0942907]
[1734373704360,0.36805062,107500.0,107470.0,0.713721]
[1734373704539,0.44625062,107500.0,107450.0,0.04081649]
[1734373704761,0.44058554,107500.0,107460.0,1.8408097]
[1734373704967,0.36238554,107500.0,107470.0,2.799154]
[1734373705245,0.36238554,107500.0,107470.0,2.374106]
[1734373705395,0.34238554,107500.0,107470.0,2.036862]
[1734373705603,0.34238554,107500.0,107460.0,0.0942907]
[1734373705813,0.34238554,107500.0,107470.0,0.963365]
[1734373705998,0.33820436,107500.0,107460.0,0.0942907]
[1734373706199,0.33264576,107500.0,107470.0,1.061614]
[1734373706622,0.33264576,107500.0,107470.0,0.877474]
[1734373707211,0.33264576,107500.0,107470.0,0.8775604]
[1734373707473,0.33268576,107500.0,107470.0,8.64e-05]
[1734373708568,0.33268576,107500.0,107480.0,0.222154]
[1734373708912,0.23839506,107500.0,107480.0,0.222154]
[1734373709447,0.17339505,107500.0,107480.0,0.222154]
[1734373709854,0.17339505,107500.0,107480.0,0.3979447]
[1734373709855,0.1658884,107500.0,107480.0,0.3979447]
[1734373710056,0.13457659,107500.0,107490.0,3.1095237]
[1734373710262,0.12590959,107500.0,107490.0,3.1095237]
[1734373710461,0.12214944,107500.0,107490.0,2.73973382]
[1734373710640,0.12214944,107500.0,107490.0,2.55110882]
[1734373710833,0.12214944,107500.0,107490.0,1.70330482]
[1734373711194,0.11564079,107500.0,107490.0,1.70330482]
[1734373712041,0.11100372,107500.0,107490.0,1.67274782]
[1734373712252,0.11100372,107500.0,107470.0,8.64e-05]
[1734373712461,0.20645718,107500.0,107470.0,8.64e-05]
[1734373712659,0.20529442,107500.0,107470.0,8.64e-05]
[1734373713656,0.20529442,107500.0,107490.0,0.1]
[1734373714061,0.20274385,107510.0,107490.0,0.1]
[1734373714268,0.29819739,107510.0,107490.0,0.10016934]
[1734373714389,0.23203454,107510.0,107490.0,0.10016934]
[1734373715907,0.00116284,107500.0,107490.0,0.10016934]
[1734373716890,0.22906731,107510.0,107490.0,0.10016934]
[1734373717090,0.000931,107500.0,107490.0,0.05366564]
[1734373717696,0.00553156,107500.0,107490.0,0.05366564]
[1734373718100,0.000931,107500.0,107490.0,0.05366564]
[1734373719378,0.1649983,107510.0,107490.0,0.05366564]
[1734373720188,0.1649983,107510.0,107470.0,8.64e-05]
[1734373720189,0.93169511,107490.0,107470.0,8.64e-05]
[1734373720921,0.93169511,107490.0,107480.0,0.448016]
[1734373721162,0.93169511,107490.0,107480.0,0.132704]
[1734373721364,0.92614419,107490.0,107470.0,8.64e-05]
[1734373721561,0.92614419,107490.0,107480.0,0.00093031]
[1734373721766,0.9135802,107490.0,107480.0,1.31497634]
[1734373722033,0.88975056,107490.0,107480.0,1.40926704]
[1734373722197,0.87468444,107490.0,107480.0,1.49225854]
[1734373722370,0.87468444,107490.0,107480.0,1.52940154]
[1734373722605,0.86087663,107490.0,107480.0,1.5149462]
[1734373722972,0.85621013,107490.0,107480.0,0.8341837]
[1734373723122,0.85049636,107490.0,107480.0,0.8341837]
[1734373723301,0.84425304,107490.0,107480.0,0.8341837]
[1734373723508,0.83755199,107490.0,107480.0,0.78814792]
[1734373723704,0.83200552,107490.0,107480.0,0.78814792]
[1734373724266,0.76700551,107490.0,107480.0,0.78814792]
[1734373724390,0.76700551,107490.0,107480.0,0.62480195]
[1734373724835,0.56700551,107490.0,107480.0,0.66194895]
[1734373725447,0.55987515,107490.0,107480.0,0.68320148]
[1734373725641,0.55987515,107490.0,107480.0,1.704547]
[1734373725910,0.55987515,107490.0,107480.0,0.960972]
[1734373726351,0.54987515,107490.0,107480.0,0.892246]
[1734373726859,0.54987515,107490.0,107480.0,0.922246]
[1734373727601,0.54066714,107490.0,107480.0,1.022246]
[1734373727807,0.52547593,107490.0,107480.0,1.022246]
[1734373729163,0.52547593,107490.0,107480.0,0.97610316]
[1734373729652,0.02527681,107510.0,107480.0,1.10754086]
[1734373729867,0.02527681,107510.0,107490.0,2.04383478]
[1734373730061,0.0400596,107520.0,107500.0,0.624897]
[1734373730215,0.55565866,107530.0,107500.0,0.00016921]
[1734373730421,0.64994936,107530.0,107500.0,0.00016921]
[1734373732987,0.72594936,107530.0,107500.0,0.00016921]
[1734373733372,0.72598936,107530.0,107500.0,0.00016921]
[1734373733619,0.55569866,107530.0,107510.0,0.326759]
[1734373733751,0.55569866,107530.0,107520.0,1.005245]
[1734373733977,0.55569866,107530.0,107520.0,0.979565]
[1734373734174,0.55569866,107530.0,107510.0,2.920384]
[1734373734362,0.49069865,107530.0,107520.0,1.067322]
[1734373734720,0.49065865,107530.0,107520.0,1.067322]
[1734373735126,0.49065865,107530.0,107520.0,0.264188]
[1734373735278,0.49065865,107530.0,107510.0,1.564208]
[1734373735483,0.49065865,107530.0,107520.0,0.2219206]
[1734373735687,0.01349847,107550.0,107540.0,0.03388925]
[1734373736068,0.01349847,107550.0,107540.0,1.5111933]
[1734373736287,0.01349847,107550.0,107540.0,0.608441]
[1734373736465,0.01349847,107550.0,107540.0,0.5441167]
[1734373736810,0.01366771,107550.0,107540.0,0.5441167]
[1734373737218,0.01366771,107550.0,107540.0,0.1921507]
[1734373737423,0.16401432,107560.0,107540.0,1.7336627]
[1734373737652,0.14325523,107560.0,107550.0,1.84327932]
[1734373737882,0.14325523,107560.0,107550.0,1.9402097]
[1734373738174,0.1352371,107560.0,107550.0,2.0096097]
[1734373738293,0.1200369,107560.0,107550.0,2.1388097]
[1734373738499,0.1200369,107560.0,107550.0,2.0409497]
[1734373738500,0.11159629,107560.0,107550.0,2.0409497]
[1734373738707,0.11159629,107560.0,107550.0,1.99412192]
[1734373738930,0.10546561,107560.0,107550.0,1.99412192]
[1734373739125,0.10546561,107560.0,107550.0,1.94412192]
[1734373739330,0.03015148,107560.0,107550.0,1.99412192]
[1734373739528,0.02118442,107560.0,107550.0,1.99412192]
[1734373739957,0.01364444,107560.0,107550.0,1.99412192]
[1734373740450,0.00688678,107560.0,107550.0,1.99412192]
[1734373740653,0.54905282,107570.0,107550.0,1.93002832]
[1734373740861,0.52820227,107570.0,107560.0,2.8314304]
[1734373741075,0.51988515,107570.0,107560.0,2.9257211]
[1734373741545,0.51988515,107570.0,107560.0,2.688718]
[1734373741747,0.51988515,107570.0,107560.0,1.80855538]
[1734373742008,0.51988515,107570.0,107560.0,1.78399938]
[1734373742216,0.51988515,107570.0,107560.0,1.46822738]
[1734373743055,0.64688515,107570.0,107540.0,0.00056924]
[1734373743478,0.74117585,107570.0,107540.0,0.00056924]
[1734373744505,0.67617584,107570.0,107540.0,0.00056924]
[1734373745212,0.0942907,107560.0,107520.0,0.00092978]
[1734373745445,0.14031596,107560.0,107530.0,0.306525]
[1734373745655,0.0942907,107560.0,107530.0,0.306525]
[1734373745862,0.0942907,107560.0,107510.0,0.0759]
[1734373746072,0.0942907,107560.0,107520.0,1.81755549]
[1734373746288,0.0942907,107560.0,107530.0,1.533686]
[1734373746669,0.0942907,107560.0,107530.0,0.613469]
[1734373746896,0.0942907,107560.0,107530.0,0.259538]
[1734373747114,0.0942907,107560.0,107530.0,0.184938]
[1734373747313,0.0942907,107560.0,107520.0,0.00092982]
[1734373747536,0.0942907,107560.0,107530.0,0.1]
[1734373747742,0.08820692,107560.0,107530.0,0.1]
[1734373749460,0.0462,107550.0,107530.0,0.1]
[1734373749667,0.1277,107550.0,107530.0,0.1]
[1734373749884,0.11873561,107550.0,107530.0,0.1]
[1734373750090,0.21302631,107550.0,107530.0,0.1]
[1734373751669,0.1757907,107550.0,107530.0,0.1]
[1734373751871,0.0759,107530.0,107490.0,0.00092995]
[1734373752075,0.1701907,107530.0,107500.0,0.320924]
[1734373752485,0.1701907,107530.0,107500.0,0.156955]
[1734373753011,0.0493,107520.0,107500.0,0.156955]
[1734373753206,0.0493,107520.0,107500.0,0.15712421]
[1734373753434,0.0493,107520.0,107500.0,0.00016921]
[1734373754418,0.15449069,107530.0,107500.0,0.00016921]
[1734373754793,0.06019999,107530.0,107510.0,0.163535]
[1734373755018,0.37271629,107560.0,107510.0,0.163535]
[1734373755221,0.0942907,107550.0,107510.0,0.163535]
[1734373755575,0.0942907,107550.0,107500.0,0.09445991]
[1734373756647,0.0942907,107550.0,107500.0,0.00016921]
[1734373757285,0.0942907,107550.0,107500.0,6.921e-05]
[1734373757490,0.1278,107540.0,107500.0,6.921e-05]
[1734373757731,0.0942907,107530.0,107500.0,6.921e-05]
[1734373758309,0.0791,107520.0,107480.0,0.0218627]
[1734373758427,0.1733907,107520.0,107480.0,0.1161534]
[1734373758629,0.1733907,107520.0,107490.0,0.88101798]
[1734373758824,0.1733907,107520.0,107500.0,0.524133]
[1734373759129,0.1733907,107520.0,107500.0,0.385585]
[1734373759366,0.10839069,107520.0,107500.0,0.570849]
[1734373759565,0.10839069,107520.0,107490.0,0.01453898]
[1734373759773,0.00016912,107530.0,107500.0,0.573326]
[1734373760038,0.00016912,107530.0,107510.0,0.00093007]
[1734373760260,0.00016912,107530.0,107520.0,0.496242]
[1734373760731,0.00016912,107530.0,107510.0,0.688047]
[1734373760948,0.00016912,107530.0,107520.0,0.501036]
[1734373761162,0.00016912,107530.0,107510.0,0.720895]
[1734373761379,0.00016912,107530.0,107520.0,0.501036]
[1734373761589,0.00016912,107530.0,107510.0,0.653948]
[1734373761793,0.00016912,107530.0,107520.0,0.399286]
[1734373761998,0.00016912,107530.0,107500.0,0.1697907]
[1734373761999,0.00016912,107530.0,107510.0,0.60535]
[1734373762179,0.00016912,107530.0,107500.0,0.1697907]
[1734373762381,0.00016912,107530.0,107510.0,0.39095996]
[1734373762588,0.00016912,107530.0,107500.0,0.1697907]
[1734373762799,0.00016912,107530.0,107510.0,0.54360896]
[1734373763002,0.00016912,107530.0,107520.0,0.354284]
[1734373763219,0.00016912,107530.0,107520.0,0.322737]
[1734373763431,0.00016912,107530.0,107520.0,0.27639963]
[1734373763646,0.00016912,107530.0,107520.0,0.171468]
[1734373763859,0.00016912,107530.0,107510.0,0.00092996]
[1734373764085,0.00016912,107530.0,107510.0,1.56771696]
[1734373764356,0.00016912,107530.0,107500.0,0.2676507]
[1734373764582,0.0942907,107530.0,107500.0,0.0755]
[1734373764810,0.0942907,107530.0,107500.0,0.07651645]
[1734373765445,0.0942907,107530.0,107500.0,0.00101645]
[1734373765855,0.1738907,107530.0,107480.0,0.00600061]
[1734373766065,0.1738907,107530.0,107490.0,1.17258579]
[1734373766275,0.0942907,107520.0,107480.0,0.00600061]
[1734373766483,0.0011627,107510.0,107480.0,0.10122147]
[1734373768049,0.0011627,107510.0,107480.0,0.09522086]
[1734373769285,0.0490627,107510.0,107480.0,0.09522086]
[1734373769688,0.0490627,107510.0,107480.0,0.0942907]
[1734373769850,0.07835339,107520.0,107480.0,0.0942907]
[1734373770262,0.07835339,107520.0,107470.0,0.03816159]
[1734373770524,0.07835339,107520.0,107480.0,0.276366]
[1734373770782,0.07835339,107520.0,107470.0,0.1315221]
[1734373771060,0.07835339,107520.0,107480.0,0.302024]
[1734373771306,0.07835339,107520.0,107470.0,0.1315221]
[1734373771592,0.07335339,107520.0,107480.0,0.629939]
[1734373772375,0.0757,107510.0,107480.0,0.470062]
[1734373772630,0.1699907,107510.0,107470.0,8.64e-05]
[1734373773168,0.2187907,107510.0,107470.0,8.64e-05]
[1734373773407,0.2187907,107510.0,107480.0,0.215515]
[1734373773892,0.2187907,107510.0,107470.0,8.64e-05]
[1734373774169,0.2187907,107510.0,107470.0,0.0010167]
[1734373774419,0.02929069,107500.0,107470.0,0.0010167]
[1734373774686,0.03040425,107500.0,107460.0,0.1288167]
[1734373774953,0.03040425,107500.0,107470.0,0.35142435]
[1734373775241,0.03040425,107500.0,107460.0,0.2231074]
[1734373775459,0.03040425,107500.0,107470.0,0.32170635]
[1734373775728,0.03040425,107500.0,107480.0,0.27192]
[1734373775915,0.03040425,107500.0,107470.0,0.602232]
[1734373776130,0.03040425,107500.0,107470.0,0.55577733]
[1734373776342,0.0801,107490.0,107460.0,0.0942907]
[1734373776557,0.00111356,107480.0,107440.0,0.02136999]
[1734373776766,0.00111356,107480.0,107450.0,0.6449037]
[1734373776997,0.00111356,107480.0,107460.0,0.185175]
[1734373777212,0.1743907,107490.0,107480.0,8.64e-05]
[1734373777637,0.1743907,107490.0,107480.0,0.00025552]
[1734373778085,0.0488,107510.0,107480.0,0.09454622]
[1734373778311,0.22160426,107510.0,107480.0,0.00025552]
[1734373778523,0.09540426,107500.0,107480.0,0.00025552]
[1734373779370,0.09540426,107500.0,107460.0,0.12315552]
[1734373779371,0.00111356,107500.0,107460.0,0.12315552]
[1734373779591,0.00128268,107500.0,107470.0,0.356312]
[1734373780014,0.00016912,107500.0,107480.0,1.37155205]
[1734373780259,0.00016912,107500.0,107490.0,1.031044]
[1734373780461,0.00016912,107500.0,107480.0,0.0942907]
[1734373782132,0.00016912,107500.0,107490.0,0.8212512]
[1734373782342,0.00016912,107500.0,107490.0,0.99571169]
[1734373782556,0.00016912,107500.0,107490.0,1.01871169]
[1734373784294,0.01695547,107540.0,107490.0,1.01871169]
[1734373784500,0.01695547,107540.0,107500.0,1.41531472]
[1734373784697,0.01695547,107540.0,107500.0,0.0942907]
[1734373784901,0.01695547,107540.0,107510.0,0.714205]
[1734373785115,0.0490728,107550.0,107520.0,0.0952207]
[1734373785330,0.0001728,107550.0,107530.0,2.19788]
[1734373785747,0.0001728,107550.0,107520.0,0.1736907]
[1734373785950,0.0001728,107550.0,107530.0,2.180513]
[1734373786158,0.0001728,107550.0,107530.0,2.2748037]
[1734373786359,0.0001728,107550.0,107540.0,2.21169454]
[1734373786557,0.00034208,107550.0,107540.0,2.7772937]
[1734373786776,0.00034208,107550.0,107540.0,2.5384907]
[1734373786913,0.00034208,107550.0,107540.0,2.5614907]
[1734373787113,0.00034208,107550.0,107540.0,2.49205676]
[1734373787589,0.00034208,107550.0,107540.0,1.74802376]
[1734373788118,0.00034208,107550.0,107540.0,1.70039076]
[1734373788296,0.00034208,107550.0,107540.0,1.78299076]
[1734373789300,0.39039981,107570.0,107540.0,1.78299076]
[1734373789483,0.39039981,107570.0,107550.0,1.628748]
[1734373789677,0.39039981,107570.0,107550.0,1.7230387]
[1734373789892,0.39039981,107570.0,107560.0,0.33456]
[1734373790101,0.39039981,107570.0,107550.0,0.0942907]
[1734373790523,0.39039981,107570.0,107540.0,0.08276928]
[1734373790724,0.39039981,107570.0,107550.0,1.307766]
[1734373791172,0.39039981,107570.0,107550.0,1.025418]
[1734373791535,0.39039981,107570.0,107550.0,0.923116]
[1734373791719,0.39039981,107570.0,107540.0,0.17705998]
[1734373791855,0.39039981,107570.0,107550.0,0.815396]
[1734373792259,0.39039981,107570.0,107550.0,0.7685816]
[1734373792509,0.39039981,107570.0,107550.0,0.235017]
[1734373792706,0.39039981,107570.0,107540.0,0.09445998]
[1734373792882,0.39039981,107570.0,107550.0,0.160352]
[1734373793311,0.39039981,107570.0,107550.0,0.2546427]
[1734373793470,0.39039981,107570.0,107560.0,0.259037]
[1734373794488,0.3253998,107570.0,107560.0,0.259037]
[1734373794706,0.5428905,107570.0,107540.0,0.00016928]
[1734373795539,0.4652905,107570.0,107540.0,0.00016928]
[1734373795736,0.4652905,107570.0,107550.0,1.659014]
[1734373796405,0.4652905,107570.0,107540.0,0.00016928]
[1734373796616,0.3709998,107570.0,107550.0,1.221477]
[1734373797044,0.3709998,107570.0,107540.0,0.09445998]
[1734373797259,0.3709998,107570.0,107550.0,1.228659]
[1734373797470,0.3709998,107570.0,107540.0,0.09445998]
[1734373797685,0.3709998,107570.0,107550.0,0.692227]
[1734373798027,0.3709998,107570.0,107550.0,0.466595]
[1734373798251,0.3709998,107570.0,107550.0,0.273708]
[1734373798447,0.4652905,107570.0,107550.0,0.273708]
[1734373798704,0.0942907,107560.0,107520.0,0.11713]
[1734373798905,0.37116901,107570.0,107530.0,1.02465356]
[1734373799112,0.46545971,107570.0,107540.0,2.233379]
[1734373799308,0.4004597,107570.0,107540.0,2.233379]
[1734373799535,0.4004597,107570.0,107540.0,1.582776]
[1734373799734,0.4004597,107570.0,107530.0,0.0942907]
[1734373799995,0.4004597,107570.0,107540.0,1.120157]
[1734373801451,0.260569,107570.0,107550.0,0.07712971]
[1734373801665,0.260569,107570.0,107560.0,2.636189]
[1734373801869,0.260569,107570.0,107560.0,1.099988]
[1734373802070,0.260569,107570.0,107560.0,0.122056]
[1734373802277,0.260569,107570.0,107540.0,0.02392964]
[1734373802485,0.260569,107570.0,107540.0,1.80401034]
[1734373802692,0.260569,107570.0,107550.0,0.682944]
[1734373802903,0.260569,107570.0,107540.0,0.1172907]
[1734373803110,0.260569,107570.0,107550.0,1.07157]
[1734373803539,0.260569,107570.0,107560.0,2.30912664]
[1734373803743,0.260569,107570.0,107560.0,1.506975]
[1734373803945,0.260569,107570.0,107560.0,1.5523047]
[1734373804370,0.19556899,107570.0,107560.0,1.5523047]
[1734373804577,0.19556899,107570.0,107560.0,1.5753047]
[1734373804785,0.19556899,107570.0,107560.0,1.6224047]
[1734373805398,0.19560899,107570.0,107560.0,1.1542607]
[1734373805606,0.19560899,107570.0,107560.0,1.15715318]
[1734373805829,0.19560899,107570.0,107560.0,1.1312607]
[1734373806184,0.02560899,107570.0,107560.0,1.1312607]
[1734373807294,0.02560899,107570.0,107560.0,0.8248717]
[1734373807492,0.02560899,107570.0,107560.0,0.8018717]
[1734373807701,0.02560899,107570.0,107560.0,0.8248717]
[1734373808775,0.02560899,107570.0,107560.0,0.8018717]
[1734373809377,0.63186062,107610.0,107560.0,0.8018717]
[1734373809598,0.09485473,107600.0,107560.0,0.1708907]
[1734373810017,0.09485473,107600.0,107570.0,0.195289]
[1734373810135,0.09485473,107600.0,107570.0,0.15965728]
[1734373810337,0.09485473,107600.0,107560.0,0.1708907]
[1734373810554,0.09485473,107600.0,107570.0,0.197936]
[1734373810959,0.00056403,107600.0,107570.0,0.29315626]
[1734373811198,0.00056403,107600.0,107580.0,0.43675]
[1734373811427,0.00056403,107600.0,107580.0,0.311471]
[1734373811656,0.00073683,107600.0,107550.0,0.023]
[1734373811893,0.00073683,107600.0,107560.0,1.8061447]
[1734373812099,0.00073683,107600.0,107570.0,0.55043143]
[1734373812337,0.00073683,107600.0,107560.0,0.0942907]